[Event "Titled Tuesday Blitz November 22 Early 2022"]
[White "Bashirli, Saadat"]
[Black "Manelyuk, Daniil"]
[WhiteFideId "13429990"]
[BlackFideId "44173920"]
[WhiteElo "1408"]
[BlackElo "2209"]
[Result "1-0"]
[Round "03"]
[TimeControl "180+1"]
[Date "2022.11.23"]
[WhiteClock "0:00:07"]
[BlackClock "0:00:06"]

1. d4 {[%clk 0:03:00]}  Nf6 {[%clk 0:02:58]} 2. c4 {[%clk 0:03:00]}  c5 {[%clk 0:02:58]} 3. d5 {[%clk 0:02:59]}  b5 {[%clk 0:02:58]} 4. cxb5 {[%clk 0:03:00]}  a6 {[%clk 0:02:58]} 5. bxa6 {[%clk 0:03:00]}  g6 {[%clk 0:02:59]} 6. Nc3 {[%clk 0:03:00]}  Bg7 {[%clk 0:02:59]} 7. e4 {[%clk 0:02:59]}  O-O {[%clk 0:02:59]} 8. Be2 {[%clk 0:02:55]}  Qa5 {[%clk 0:02:59]} 9. Bd2 {[%clk 0:02:52]}  Bxa6 {[%clk 0:02:51]} 10. Nf3 {[%clk 0:02:50]}  Bxe2 {[%clk 0:02:30]} 11. Qxe2 {[%clk 0:02:48]}  Qa6 {[%clk 0:02:29]} 12. Qxa6 {[%clk 0:02:45]}  Nxa6 {[%clk 0:02:29]} 13. O-O {[%clk 0:02:44]}  Rfb8 {[%clk 0:02:19]} 14. Rab1 {[%clk 0:02:41]}  Nb4 {[%clk 0:02:05]} 15. a4 {[%clk 0:02:34]}  d6 {[%clk 0:02:03]} 16. b3 {[%clk 0:02:33]}  Rb7 {[%clk 0:01:57]} 17. Rfe1 {[%clk 0:02:31]}  Nd7 {[%clk 0:01:55]} 18. Nb5 {[%clk 0:02:28]}  Na6 {[%clk 0:01:55]} 19. Rec1 {[%clk 0:02:24]}  Nc7 {[%clk 0:01:51]} 20. Na3 {[%clk 0:02:16]}  Rab8 {[%clk 0:01:45]} 21. b4 {[%clk 0:02:05]}  cxb4 {[%clk 0:01:45]} 22. Bxb4 {[%clk 0:02:05]}  Rxb4 {[%clk 0:01:44]} 23. Rxb4 {[%clk 0:02:04]}  Rxb4 {[%clk 0:01:44]} 24. Rxc7 {[%clk 0:02:04]}  Nc5 {[%clk 0:01:35]} 25. Rc8+ {[%clk 0:02:01]}  Bf8 {[%clk 0:01:34]} 26. a5 {[%clk 0:02:00]}  Rxe4 {[%clk 0:01:23]} 27. g3 {[%clk 0:01:54]}  Ra4 {[%clk 0:01:22]} 28. Nc2 {[%clk 0:01:46]}  Rxa5 {[%clk 0:01:21]} 29. Ncd4 {[%clk 0:01:46]}  Kg7 {[%clk 0:01:19]} 30. Nc6 {[%clk 0:01:46]}  Ra1+ {[%clk 0:01:18]} 31. Kg2 {[%clk 0:01:46]}  Rd1 {[%clk 0:01:18]} 32. Rc7 {[%clk 0:01:38]}  Kf6 {[%clk 0:01:02]} 33. Rc8 {[%clk 0:01:33]}  Bh6 {[%clk 0:00:20]} 34. Re8 {[%clk 0:01:28]}  e6 {[%clk 0:00:14]} 35. dxe6 {[%clk 0:01:10]}  Nxe6 {[%clk 0:00:15]} 36. Rh8 {[%clk 0:00:54]}  Kg7 {[%clk 0:00:14]} 37. Ra8 {[%clk 0:00:52]}  d5 {[%clk 0:00:15]} 38. Ra7 {[%clk 0:00:50]}  d4 {[%clk 0:00:12]} 39. Nfe5 {[%clk 0:00:48]}  Kg8 {[%clk 0:00:05]} 40. Rxf7 {[%clk 0:00:46]}  Bf8 {[%clk 0:00:05]} 41. Rf6 {[%clk 0:00:42]}  Ng7 {[%clk 0:00:03]} 42. Nd7 {[%clk 0:00:36]}  Bd6 {[%clk 0:00:03]} 43. Rxd6 {[%clk 0:00:36]}  Ne8 {[%clk 0:00:03]} 44. Re6 {[%clk 0:00:35]}  Nc7 {[%clk 0:00:03]} 45. Re4 {[%clk 0:00:34]}  d3 {[%clk 0:00:03]} 46. Rd4 {[%clk 0:00:34]}  Ne6 {[%clk 0:00:03]} 47. Rd6 {[%clk 0:00:33]}  d2 {[%clk 0:00:03]} 48. Nde5 {[%clk 0:00:28]}  Nc5 {[%clk 0:00:03]} 49. Nb4 {[%clk 0:00:23]}  Ne4 {[%clk 0:00:02]} 50. Rd4 {[%clk 0:00:23]}  Re1 {[%clk 0:00:03]} 51. Rd8+ {[%clk 0:00:17]}  Kg7 {[%clk 0:00:02]} 52. Rd7+ {[%clk 0:00:17]}  Kf6 {[%clk 0:00:02]} 53. Ng4+ {[%clk 0:00:17]}  Kg5 {[%clk 0:00:02]} 54. Ne3 {[%clk 0:00:17]}  Re2 {[%clk 0:00:02]} 55. Rd5+ {[%clk 0:00:15]}  Kh6 {[%clk 0:00:02]} 56. Kf3 {[%clk 0:00:12]}  Nc3 {[%clk 0:00:01]} 57. Rd4 {[%clk 0:00:08]}  Rxe3+ {[%clk 0:00:01]} 58. Kxe3 {[%clk 0:00:07]}  d1=Q {[%clk 0:00:01]} 59. Rxd1 {[%clk 0:00:08]}  Nxd1+ {[%clk 0:00:02]} 60. Kf3 {[%clk 0:00:08]}  Nc3 {[%clk 0:00:02]} 61. Nd3 {[%clk 0:00:08]}  Nb5 {[%clk 0:00:03]} 62. Kg4 {[%clk 0:00:08]}  Nd6 {[%clk 0:00:03]} 63. Ne5 {[%clk 0:00:07]}  Kg7 {[%clk 0:00:03]} 64. Kf4 {[%clk 0:00:07]}  Nf5 {[%clk 0:00:02]} 65. g4 {[%clk 0:00:07]}  Ne7 {[%clk 0:00:02]} 66. Nd7 {[%clk 0:00:06]}  Nd5+ {[%clk 0:00:02]} 67. Ke5 {[%clk 0:00:05]}  Ne7 {[%clk 0:00:03]} 68. f4 {[%clk 0:00:05]}  h6 {[%clk 0:00:02]} 69. Nc5 {[%clk 0:00:04]}  Nc6+ {[%clk 0:00:02]} 70. Kd6 {[%clk 0:00:04]}  Nd8 {[%clk 0:00:02]} 71. Ke7 {[%clk 0:00:04]}  Nc6+ {[%clk 0:00:02]} 72. Kd7 {[%clk 0:00:04]}  Nd4 {[%clk 0:00:03]} 73. Ne6+ {[%clk 0:00:04]}  Nxe6 {[%clk 0:00:03]} 74. Kxe6 {[%clk 0:00:05]}  h5 {[%clk 0:00:03]} 75. gxh5 {[%clk 0:00:04]}  gxh5 {[%clk 0:00:04]} 76. f5 {[%clk 0:00:05]}  h4 {[%clk 0:00:03]} 77. Ke7 {[%clk 0:00:04]}  Kg8 {[%clk 0:00:03]} 78. f6 {[%clk 0:00:05]}  Kh7 {[%clk 0:00:03]} 79. f7 {[%clk 0:00:05]}  h3 {[%clk 0:00:04]} 80. f8=Q {[%clk 0:00:05]}  Kg6 {[%clk 0:00:04]} 81. Qf6+ {[%clk 0:00:05]}  Kh7 {[%clk 0:00:05]} 82. Qg5 {[%clk 0:00:05]}  Kh8 {[%clk 0:00:05]} 83. Kf7 {[%clk 0:00:06]}  Kh7 {[%clk 0:00:06]} 84. Qg7# {[%clk 0:00:07]} 1-0


[Site "https://www.chess.com"]

[Event "Titled Tuesday Blitz November 22 Early 2022"]
[White "Begmuratov, Khumoyun"]
[Black "Gonzalez, Francisco Silva"]
[WhiteFideId "14210207"]
[BlackFideId "1512285"]
[WhiteElo "2267"]
[BlackElo "2159"]
[Result "1-0"]
[Round "03"]
[TimeControl "180+1"]
[Date "2022.11.23"]
[WhiteClock "0:01:38"]
[BlackClock "0:01:52"]

1. e4 {[%clk 0:03:00]}  e5 {[%clk 0:02:53]} 2. Nf3 {[%clk 0:03:00]}  Nc6 {[%clk 0:02:53]} 3. Nc3 {[%clk 0:03:01]}  Nf6 {[%clk 0:02:52]} 4. d4 {[%clk 0:03:01]}  Bb4 {[%clk 0:02:48]} 5. Nxe5 {[%clk 0:02:54]}  Qe7 {[%clk 0:02:48]} 6. Qd3 {[%clk 0:02:54]}  Nxe5 {[%clk 0:02:34]} 7. dxe5 {[%clk 0:02:55]}  Qxe5 {[%clk 0:02:33]} 8. Bd2 {[%clk 0:02:52]}  Bxc3 {[%clk 0:02:27]} 9. Bxc3 {[%clk 0:02:52]}  Qxe4+ {[%clk 0:02:27]} 10. Qxe4+ {[%clk 0:02:52]}  Nxe4 {[%clk 0:02:28]} 11. Bxg7 {[%clk 0:02:53]}  Rg8 {[%clk 0:02:28]} 12. Bd4 {[%clk 0:02:51]}  d5 {[%clk 0:02:28]} 13. f3 {[%clk 0:02:51]}  Nd6 {[%clk 0:02:26]} 14. g4 {[%clk 0:02:48]}  h5 {[%clk 0:02:24]} 15. gxh5 {[%clk 0:02:47]}  Bf5 {[%clk 0:02:24]} 16. c3 {[%clk 0:02:42]}  Kd7 {[%clk 0:02:21]} 17. Kf2 {[%clk 0:02:37]}  Rg5 {[%clk 0:02:19]} 18. h6 {[%clk 0:02:29]}  Rh5 {[%clk 0:02:16]} 19. Bg7 {[%clk 0:02:28]}  Ne8 {[%clk 0:02:14]} 20. Rd1 {[%clk 0:02:09]}  c6 {[%clk 0:02:10]} 21. c4 {[%clk 0:02:05]}  Be6 {[%clk 0:02:08]} 22. cxd5 {[%clk 0:02:04]}  Nxg7 {[%clk 0:02:07]} 23. dxe6+ {[%clk 0:02:02]}  Kxe6 {[%clk 0:02:07]} 24. hxg7 {[%clk 0:02:03]}  Rg8 {[%clk 0:02:07]} 25. Bc4+ {[%clk 0:02:02]}  Kf6 {[%clk 0:02:08]} 26. Rd6+ {[%clk 0:01:59]}  Ke7 {[%clk 0:02:05]} 27. Rd4 {[%clk 0:01:58]}  Rxg7 {[%clk 0:02:05]} 28. Re1+ {[%clk 0:01:57]}  Kf6 {[%clk 0:02:04]} 29. Rd6+ {[%clk 0:01:56]}  Kg5 {[%clk 0:01:58]} 30. Re5+ {[%clk 0:01:51]}  Kf4 {[%clk 0:01:52]} 31. Rxh5 {[%clk 0:01:47]}  Rg2+ {[%clk 0:01:52]} 32. Kxg2 {[%clk 0:01:47]}  Ke3 {[%clk 0:01:52]} 33. Re5+ {[%clk 0:01:38]} 1-0


[Site "https://www.chess.com"]

[Event "Titled Tuesday Blitz November 22 Early 2022"]
[White "Bilan, Danila"]
[Black "Izuzquiza Gonzalez, Javier"]
[WhiteFideId "24161918"]
[BlackFideId "3101029"]
[WhiteElo "2173"]
[BlackElo "2034"]
[Result "1/2-1/2"]
[Round "03"]
[TimeControl "180+1"]
[Date "2022.11.23"]
[WhiteClock "0:00:26"]
[BlackClock "0:00:14"]

1. d4 {[%clk 0:03:00]}  Nf6 {[%clk 0:02:59]} 2. Nf3 {[%clk 0:03:00]}  g6 {[%clk 0:02:57]} 3. Bg5 {[%clk 0:03:00]}  Bg7 {[%clk 0:02:56]} 4. c3 {[%clk 0:03:00]}  d5 {[%clk 0:02:56]} 5. Nbd2 {[%clk 0:03:00]}  O-O {[%clk 0:02:54]} 6. e3 {[%clk 0:02:59]}  c5 {[%clk 0:02:53]} 7. Bd3 {[%clk 0:02:59]}  Nc6 {[%clk 0:02:49]} 8. O-O {[%clk 0:02:59]}  b6 {[%clk 0:02:46]} 9. dxc5 {[%clk 0:02:49]}  bxc5 {[%clk 0:02:45]} 10. e4 {[%clk 0:02:49]}  d4 {[%clk 0:02:37]} 11. Nb3 {[%clk 0:02:29]}  dxc3 {[%clk 0:02:25]} 12. bxc3 {[%clk 0:02:24]}  c4 {[%clk 0:02:06]} 13. Bxc4 {[%clk 0:02:10]}  Nxe4 {[%clk 0:02:05]} 14. Qxd8 {[%clk 0:01:59]}  Rxd8 {[%clk 0:02:04]} 15. Nbd4 {[%clk 0:01:53]}  Nxd4 {[%clk 0:02:00]} 16. cxd4 {[%clk 0:01:53]}  Nxg5 {[%clk 0:01:33]} 17. Nxg5 {[%clk 0:01:48]}  e6 {[%clk 0:01:33]} 18. Rad1 {[%clk 0:01:30]}  Bxd4 {[%clk 0:01:12]} 19. Nf3 {[%clk 0:01:15]}  Bf6 {[%clk 0:01:02]} 20. Rxd8+ {[%clk 0:01:00]}  Bxd8 {[%clk 0:01:03]} 21. Rd1 {[%clk 0:00:45]}  Bb7 {[%clk 0:00:51]} 22. Rd7 {[%clk 0:00:40]}  Bxf3 {[%clk 0:00:48]} 23. gxf3 {[%clk 0:00:40]}  Bb6 {[%clk 0:00:48]} 24. Ba6 {[%clk 0:00:38]}  Rd8 {[%clk 0:00:29]} 25. Rxd8+ {[%clk 0:00:37]}  Bxd8 {[%clk 0:00:30]} 26. Kf1 {[%clk 0:00:36]}  Bc7 {[%clk 0:00:28]} 27. h3 {[%clk 0:00:35]}  Kg7 {[%clk 0:00:28]} 28. Ke2 {[%clk 0:00:36]}  f6 {[%clk 0:00:23]} 29. Bc4 {[%clk 0:00:34]}  e5 {[%clk 0:00:23]} 30. Kd3 {[%clk 0:00:33]}  Bb6 {[%clk 0:00:22]} 31. f4 {[%clk 0:00:27]}  exf4 {[%clk 0:00:20]} 32. f3 {[%clk 0:00:25]}  Kf8 {[%clk 0:00:17]} 33. Ke4 {[%clk 0:00:25]}  g5 {[%clk 0:00:17]} 34. Kf5 {[%clk 0:00:25]}  Ke7 {[%clk 0:00:17]} 35. Bg8 {[%clk 0:00:24]}  Bf2 {[%clk 0:00:14]} 36. Bxh7 {[%clk 0:00:24]}  Bd4 {[%clk 0:00:14]} 37. Bg8 {[%clk 0:00:24]}  Be5 {[%clk 0:00:13]} 38. Kg4 {[%clk 0:00:19]}  Kd6 {[%clk 0:00:11]} 39. h4 {[%clk 0:00:19]}  gxh4 {[%clk 0:00:10]} 40. Kxh4 {[%clk 0:00:20]}  Kc5 {[%clk 0:00:11]} 41. Kg4 {[%clk 0:00:20]}  Kb4 {[%clk 0:00:11]} 42. Kf5 {[%clk 0:00:20]}  a5 {[%clk 0:00:11]} 43. Ke4 {[%clk 0:00:21]}  a4 {[%clk 0:00:12]} 44. Bf7 {[%clk 0:00:22]}  a3 {[%clk 0:00:12]} 45. Be6 {[%clk 0:00:22]}  Kc3 {[%clk 0:00:12]} 46. Bb3 {[%clk 0:00:23]}  Kb2 {[%clk 0:00:12]} 47. Bg8 {[%clk 0:00:24]}  Kc3 {[%clk 0:00:12]} 48. Bb3 {[%clk 0:00:25]}  Kb2 {[%clk 0:00:13]} 49. Bg8 {[%clk 0:00:26]}  Kc3 {[%clk 0:00:14]} 50. Bb3 {[%clk 0:00:26]} 1/2-1/2


[Site "https://www.chess.com"]

[Event "Titled Tuesday Blitz November 22 Early 2022"]
[White "Bilych, Olexiy"]
[Black "Odegov, Artem"]
[WhiteFideId "14156504"]
[BlackFideId "34183644"]
[WhiteElo "2320"]
[BlackElo "2298"]
[Result "1-0"]
[Round "03"]
[TimeControl "180+1"]
[Date "2022.11.23"]
[WhiteClock "0:00:19"]
[BlackClock "0:00:03"]

1. e4 {[%clk 0:03:00]}  e6 {[%clk 0:02:59]} 2. d4 {[%clk 0:03:00]}  d5 {[%clk 0:02:59]} 3. Nd2 {[%clk 0:02:39]}  Nf6 {[%clk 0:02:59]} 4. e5 {[%clk 0:02:36]}  Nfd7 {[%clk 0:02:59]} 5. Ngf3 {[%clk 0:02:36]}  c5 {[%clk 0:03:00]} 6. c3 {[%clk 0:02:36]}  Nc6 {[%clk 0:03:00]} 7. Bd3 {[%clk 0:02:36]}  cxd4 {[%clk 0:03:01]} 8. cxd4 {[%clk 0:02:35]}  Qb6 {[%clk 0:03:01]} 9. O-O {[%clk 0:02:33]}  Nxd4 {[%clk 0:03:02]} 10. Nxd4 {[%clk 0:02:34]}  Qxd4 {[%clk 0:03:02]} 11. Nf3 {[%clk 0:02:32]}  Qb6 {[%clk 0:03:02]} 12. Qa4 {[%clk 0:02:29]}  Qb4 {[%clk 0:02:58]} 13. Qc2 {[%clk 0:02:23]}  g6 {[%clk 0:02:14]} 14. Bd2 {[%clk 0:02:06]}  Qb6 {[%clk 0:02:14]} 15. Rac1 {[%clk 0:02:03]}  Qd8 {[%clk 0:01:37]} 16. Bg5 {[%clk 0:01:57]}  Be7 {[%clk 0:01:36]} 17. Bxe7 {[%clk 0:01:54]}  Kxe7 {[%clk 0:01:36]} 18. Qd2 {[%clk 0:01:38]}  h5 {[%clk 0:01:30]} 19. Qb4+ {[%clk 0:01:28]}  Ke8 {[%clk 0:01:29]} 20. h4 {[%clk 0:01:04]}  Qe7 {[%clk 0:01:23]} 21. Qf4 {[%clk 0:01:04]}  Nc5 {[%clk 0:01:03]} 22. Bb5+ {[%clk 0:00:55]}  Bd7 {[%clk 0:01:02]} 23. Bxd7+ {[%clk 0:00:55]}  Kxd7 {[%clk 0:00:32]} 24. Qb4 {[%clk 0:00:49]}  b6 {[%clk 0:00:19]} 25. Qb5+ {[%clk 0:00:50]}  Kd8 {[%clk 0:00:19]} 26. Nd4 {[%clk 0:00:50]}  Qd7 {[%clk 0:00:16]} 27. Qe2 {[%clk 0:00:27]}  Ke7 {[%clk 0:00:09]} 28. b4 {[%clk 0:00:24]}  Ne4 {[%clk 0:00:04]} 29. Qf3 {[%clk 0:00:24]}  Kf8 {[%clk 0:00:03]} 30. Rc7 {[%clk 0:00:23]}  Qxc7 {[%clk 0:00:01]} 31. Nxe6+ {[%clk 0:00:23]}  Ke7 {[%clk 0:00:02]} 32. Nxc7 {[%clk 0:00:24]}  Nd2 {[%clk 0:00:02]} 33. Qf6+ {[%clk 0:00:22]}  Kd7 {[%clk 0:00:02]} 34. Qd6+ {[%clk 0:00:22]}  Kc8 {[%clk 0:00:02]} 35. Nxd5 {[%clk 0:00:22]}  Kb7 {[%clk 0:00:01]} 36. Qd7+ {[%clk 0:00:22]}  Ka6 {[%clk 0:00:02]} 37. Rc1 {[%clk 0:00:19]}  Rhc8 {[%clk 0:00:01]} 38. Rxc8 {[%clk 0:00:19]}  Ne4 {[%clk 0:00:02]} 39. Qa4+ {[%clk 0:00:18]}  Kb7 {[%clk 0:00:03]} 40. Rc7+ {[%clk 0:00:18]}  Kb8 {[%clk 0:00:03]} 41. Qe8# {[%clk 0:00:19]} 1-0


[Site "https://www.chess.com"]

[Event "Titled Tuesday Blitz November 22 Early 2022"]
[White "Bobomurodova, Maftuna"]
[Black "Lucas, Arthur"]
[WhiteFideId "14207400"]
[BlackFideId "26093073"]
[WhiteElo "1891"]
[BlackElo "2251"]
[Result "0-1"]
[Round "03"]
[TimeControl "180+1"]
[Date "2022.11.23"]
[WhiteClock "0:01:53"]
[BlackClock "0:02:35"]

1. e4 {[%clk 0:03:00]}  g6 {[%clk 0:02:58]} 2. d4 {[%clk 0:03:00]}  Bg7 {[%clk 0:02:59]} 3. Nc3 {[%clk 0:02:59]}  a6 {[%clk 0:03:00]} 4. a4 {[%clk 0:02:55]}  d6 {[%clk 0:03:00]} 5. Nf3 {[%clk 0:02:54]}  Nc6 {[%clk 0:02:59]} 6. h3 {[%clk 0:02:47]}  Nf6 {[%clk 0:02:58]} 7. Be2 {[%clk 0:02:46]}  O-O {[%clk 0:02:58]} 8. O-O {[%clk 0:02:44]}  e5 {[%clk 0:02:59]} 9. Be3 {[%clk 0:02:42]}  Qe8 {[%clk 0:02:56]} 10. d5 {[%clk 0:02:36]}  Nd8 {[%clk 0:02:48]} 11. b4 {[%clk 0:02:34]}  Nh5 {[%clk 0:02:46]} 12. Nd2 {[%clk 0:02:22]}  f5 {[%clk 0:02:44]} 13. Bxh5 {[%clk 0:02:20]}  gxh5 {[%clk 0:02:45]} 14. f3 {[%clk 0:02:19]}  Qg6 {[%clk 0:02:39]} 15. Qe1 {[%clk 0:02:11]}  f4 {[%clk 0:02:37]} 16. Bf2 {[%clk 0:02:10]}  Bxh3 {[%clk 0:02:37]} 17. g3 {[%clk 0:01:54]}  fxg3 {[%clk 0:02:36]} 18. Bxg3 {[%clk 0:01:53]}  h4 {[%clk 0:02:35]} 0-1


[Site "https://www.chess.com"]

[Event "Titled Tuesday Blitz November 22 Early 2022"]
[White "Boros, Denes"]
[Black "Crevatin, Leo"]
[WhiteFideId "722340"]
[BlackFideId "1726307"]
[WhiteElo "2464"]
[BlackElo "2208"]
[Result "1-0"]
[Round "03"]
[TimeControl "180+1"]
[Date "2022.11.23"]
[WhiteClock "0:01:00"]
[BlackClock "0:00:12"]

1. d4 {[%clk 0:03:00]}  Nf6 {[%clk 0:02:59]} 2. Nc3 {[%clk 0:03:01]}  d5 {[%clk 0:02:59]} 3. Bf4 {[%clk 0:03:01]}  c5 {[%clk 0:02:59]} 4. Nf3 {[%clk 0:03:02]}  a6 {[%clk 0:02:54]} 5. dxc5 {[%clk 0:02:58]}  e6 {[%clk 0:02:51]} 6. e4 {[%clk 0:02:58]}  Bxc5 {[%clk 0:02:42]} 7. Bd3 {[%clk 0:02:52]}  Nc6 {[%clk 0:02:37]} 8. O-O {[%clk 0:02:51]}  Nb4 {[%clk 0:02:33]} 9. exd5 {[%clk 0:02:47]}  Nfxd5 {[%clk 0:02:16]} 10. Bg5 {[%clk 0:02:38]}  Qc7 {[%clk 0:01:59]} 11. Nxd5 {[%clk 0:02:28]}  Nxd5 {[%clk 0:02:00]} 12. Re1 {[%clk 0:02:24]}  O-O {[%clk 0:01:59]} 13. a3 {[%clk 0:02:12]}  b5 {[%clk 0:01:53]} 14. Rc1 {[%clk 0:01:57]}  Bb7 {[%clk 0:01:50]} 15. c4 {[%clk 0:01:57]}  bxc4 {[%clk 0:01:50]} 16. Rxc4 {[%clk 0:01:58]}  Qb6 {[%clk 0:01:49]} 17. Qc2 {[%clk 0:01:52]}  h6 {[%clk 0:01:47]} 18. Rxc5 {[%clk 0:01:50]}  hxg5 {[%clk 0:01:42]} 19. Nxg5 {[%clk 0:01:50]}  Rfc8 {[%clk 0:01:34]} 20. b4 {[%clk 0:01:42]}  a5 {[%clk 0:01:18]} 21. Bg6 {[%clk 0:01:17]}  fxg6 {[%clk 0:01:13]} 22. Qxg6 {[%clk 0:01:17]}  Nf6 {[%clk 0:00:18]} 23. Nxe6 {[%clk 0:01:12]}  Ne8 {[%clk 0:00:12]} 24. Rf5 {[%clk 0:01:00]} 1-0


[Site "https://www.chess.com"]

[Event "Titled Tuesday Blitz November 22 Early 2022"]
[White "Boruchovsky, Avital"]
[Black "Deac, Bogdan-Daniel"]
[WhiteFideId "2800055"]
[BlackFideId "1226380"]
[WhiteElo "2458"]
[BlackElo "2648"]
[Result "0-1"]
[Round "03"]
[TimeControl "180+1"]
[Date "2022.11.22"]
[WhiteClock "0:00:27"]
[BlackClock "0:00:16"]

1. d4 {[%clk 0:02:55]}  Nf6 {[%clk 0:02:59]} 2. Bf4 {[%clk 0:02:54]}  d5 {[%clk 0:02:59]} 3. e3 {[%clk 0:02:53]}  c5 {[%clk 0:03:00]} 4. Nc3 {[%clk 0:02:52]}  cxd4 {[%clk 0:02:58]} 5. exd4 {[%clk 0:02:52]}  a6 {[%clk 0:02:58]} 6. Nf3 {[%clk 0:02:52]}  Nc6 {[%clk 0:02:58]} 7. h3 {[%clk 0:02:51]}  Bf5 {[%clk 0:02:56]} 8. Bd3 {[%clk 0:02:50]}  Bxd3 {[%clk 0:02:50]} 9. Qxd3 {[%clk 0:02:51]}  e6 {[%clk 0:02:50]} 10. O-O {[%clk 0:02:50]}  Be7 {[%clk 0:02:50]} 11. Ne2 {[%clk 0:02:43]}  Qb6 {[%clk 0:02:50]} 12. c3 {[%clk 0:02:40]}  O-O {[%clk 0:02:44]} 13. Ng3 {[%clk 0:02:29]}  Rac8 {[%clk 0:02:39]} 14. Rab1 {[%clk 0:02:15]}  Qd8 {[%clk 0:02:29]} 15. Ne5 {[%clk 0:02:14]}  Nxe5 {[%clk 0:02:23]} 16. Bxe5 {[%clk 0:02:15]}  Nd7 {[%clk 0:02:22]} 17. Bf4 {[%clk 0:02:10]}  b5 {[%clk 0:02:22]} 18. a4 {[%clk 0:02:03]}  bxa4 {[%clk 0:02:16]} 19. Qxa6 {[%clk 0:02:01]}  Ra8 {[%clk 0:02:02]} 20. Qd3 {[%clk 0:01:57]}  Nb6 {[%clk 0:02:02]} 21. b3 {[%clk 0:01:46]}  axb3 {[%clk 0:02:00]} 22. Rxb3 {[%clk 0:01:46]}  Nc4 {[%clk 0:02:01]} 23. Rfb1 {[%clk 0:01:38]}  Bd6 {[%clk 0:01:45]} 24. Nh5 {[%clk 0:01:29]}  g6 {[%clk 0:01:41]} 25. Bxd6 {[%clk 0:01:12]}  Nxd6 {[%clk 0:01:34]} 26. Nf4 {[%clk 0:01:06]}  Qg5 {[%clk 0:01:34]} 27. g3 {[%clk 0:01:00]}  Nc4 {[%clk 0:01:20]} 28. h4 {[%clk 0:00:58]}  Qf6 {[%clk 0:01:08]} 29. Qe2 {[%clk 0:00:45]}  Qf5 {[%clk 0:00:55]} 30. Nd3 {[%clk 0:00:41]}  h5 {[%clk 0:00:47]} 31. Ne5 {[%clk 0:00:40]}  Nxe5 {[%clk 0:00:33]} 32. dxe5 {[%clk 0:00:40]}  Rac8 {[%clk 0:00:27]} 33. Qe3 {[%clk 0:00:37]}  Rc4 {[%clk 0:00:17]} 34. Rb8 {[%clk 0:00:28]}  Kg7 {[%clk 0:00:17]} 35. Rxf8 {[%clk 0:00:27]}  Qxb1+ {[%clk 0:00:16]} 0-1


[Site "https://www.chess.com"]

[Event "Titled Tuesday Blitz November 22 Early 2022"]
[White "Castellanos Hernandez, Emilio Au"]
[Black "Cruz Mendez, Jean Marco"]
[WhiteFideId "5114179"]
[BlackFideId "3526402"]
[WhiteElo "2037"]
[BlackElo "2064"]
[Result "0-1"]
[Round "03"]
[TimeControl "180+1"]
[Date "2022.11.23"]
[WhiteClock "0:00:56"]
[BlackClock "0:00:57"]

1. e4 {[%clk 0:03:00]}  c5 {[%clk 0:02:53]} 2. Nf3 {[%clk 0:02:58]}  Nc6 {[%clk 0:02:52]} 3. c3 {[%clk 0:02:54]}  Nf6 {[%clk 0:02:51]} 4. e5 {[%clk 0:02:48]}  Nd5 {[%clk 0:02:50]} 5. d4 {[%clk 0:02:49]}  cxd4 {[%clk 0:02:47]} 6. cxd4 {[%clk 0:02:50]}  e6 {[%clk 0:02:45]} 7. Nc3 {[%clk 0:02:46]}  Nxc3 {[%clk 0:02:44]} 8. bxc3 {[%clk 0:02:46]}  d6 {[%clk 0:02:45]} 9. Bb5 {[%clk 0:02:42]}  Bd7 {[%clk 0:02:44]} 10. exd6 {[%clk 0:02:37]}  Bxd6 {[%clk 0:02:43]} 11. O-O {[%clk 0:02:38]}  O-O {[%clk 0:02:38]} 12. a4 {[%clk 0:02:33]}  Ne7 {[%clk 0:02:31]} 13. Bd3 {[%clk 0:02:33]}  Ng6 {[%clk 0:02:28]} 14. Re1 {[%clk 0:02:27]}  Bc6 {[%clk 0:02:26]} 15. Ba3 {[%clk 0:02:21]}  Bxa3 {[%clk 0:02:23]} 16. Rxa3 {[%clk 0:02:22]}  Rc8 {[%clk 0:02:22]} 17. Bb5 {[%clk 0:02:18]}  Bd5 {[%clk 0:02:19]} 18. Nd2 {[%clk 0:02:13]}  a6 {[%clk 0:02:17]} 19. Bf1 {[%clk 0:02:11]}  Qf6 {[%clk 0:02:01]} 20. g3 {[%clk 0:02:11]}  Qe7 {[%clk 0:01:50]} 21. Qa1 {[%clk 0:01:59]}  h5 {[%clk 0:01:49]} 22. Bg2 {[%clk 0:01:57]}  Bxg2 {[%clk 0:01:49]} 23. Kxg2 {[%clk 0:01:58]}  h4 {[%clk 0:01:49]} 24. Rb3 {[%clk 0:01:56]}  Qd7 {[%clk 0:01:42]} 25. Reb1 {[%clk 0:01:53]}  Rc7 {[%clk 0:01:38]} 26. Qb2 {[%clk 0:01:51]}  Qd5+ {[%clk 0:01:28]} 27. f3 {[%clk 0:01:44]}  Qg5 {[%clk 0:01:24]} 28. Ne4 {[%clk 0:01:44]}  Qe3 {[%clk 0:01:20]} 29. Qd2 {[%clk 0:01:30]}  h3+ {[%clk 0:01:15]} 30. Kxh3 {[%clk 0:01:27]}  Qxf3 {[%clk 0:01:16]} 31. Nc5 {[%clk 0:01:20]}  e5 {[%clk 0:01:02]} 32. Rxb7 {[%clk 0:01:05]}  Rxb7 {[%clk 0:00:58]} 33. Rxb7 {[%clk 0:01:05]}  Nf4+ {[%clk 0:00:58]} 34. Kh4 {[%clk 0:00:56]}  Qh5# {[%clk 0:00:57]} 0-1


[Site "https://www.chess.com"]

[Event "Titled Tuesday Blitz November 22 Early 2022"]
[White "Castillo Pena, Patricia Evarista"]
[Black "Kuznetsov, Mikhail"]
[WhiteFideId "6412106"]
[BlackFideId "4117190"]
[WhiteElo "1919"]
[BlackElo "1981"]
[Result "0-1"]
[Round "03"]
[TimeControl "180+1"]
[Date "2022.11.23"]
[WhiteClock "0:00:02"]
[BlackClock "0:00:31"]

1. d4 {[%clk 0:02:38]}  Nf6 {[%clk 0:02:58]} 2. Nf3 {[%clk 0:02:38]}  g6 {[%clk 0:02:58]} 3. Nc3 {[%clk 0:02:36]}  d5 {[%clk 0:02:56]} 4. Bf4 {[%clk 0:02:35]}  Bg7 {[%clk 0:02:54]} 5. e3 {[%clk 0:02:28]}  O-O {[%clk 0:02:52]} 6. Be2 {[%clk 0:02:21]}  c5 {[%clk 0:02:51]} 7. Ne5 {[%clk 0:02:16]}  Nc6 {[%clk 0:02:49]} 8. O-O {[%clk 0:02:12]}  cxd4 {[%clk 0:02:41]} 9. exd4 {[%clk 0:02:12]}  Qb6 {[%clk 0:02:38]} 10. Nxc6 {[%clk 0:02:11]}  bxc6 {[%clk 0:02:38]} 11. Na4 {[%clk 0:02:08]}  Qa5 {[%clk 0:02:27]} 12. c3 {[%clk 0:02:06]}  Ba6 {[%clk 0:02:26]} 13. Bxa6 {[%clk 0:02:01]}  Qxa6 {[%clk 0:02:26]} 14. Nc5 {[%clk 0:02:01]}  Qb5 {[%clk 0:02:25]} 15. Qd2 {[%clk 0:01:57]}  e6 {[%clk 0:02:22]} 16. Be5 {[%clk 0:01:53]}  Nh5 {[%clk 0:01:57]} 17. a4 {[%clk 0:01:49]}  Qa5 {[%clk 0:01:49]} 18. b4 {[%clk 0:01:46]}  Qd8 {[%clk 0:01:48]} 19. Bxg7 {[%clk 0:01:40]}  Nxg7 {[%clk 0:01:49]} 20. Rfe1 {[%clk 0:01:32]}  Nf5 {[%clk 0:01:47]} 21. Qd3 {[%clk 0:01:16]}  Nd6 {[%clk 0:01:39]} 22. Qg3 {[%clk 0:01:11]}  Nf5 {[%clk 0:01:30]} 23. Qh3 {[%clk 0:01:06]}  Rb8 {[%clk 0:01:29]} 24. Rad1 {[%clk 0:01:02]}  a5 {[%clk 0:01:25]} 25. Nd3 {[%clk 0:00:30]}  Qb6 {[%clk 0:01:12]} 26. bxa5 {[%clk 0:00:25]}  Qxa5 {[%clk 0:01:11]} 27. Ne5 {[%clk 0:00:21]}  Rb7 {[%clk 0:00:50]} 28. Nxc6 {[%clk 0:00:15]}  Qxa4 {[%clk 0:00:50]} 29. Ne5 {[%clk 0:00:15]}  Rfb8 {[%clk 0:00:41]} 30. Ng4 {[%clk 0:00:15]}  h5 {[%clk 0:00:38]} 31. Ne3 {[%clk 0:00:02]}  Nd6 {[%clk 0:00:31]} 0-1


[Site "https://www.chess.com"]